[Event "Early-Titled-Tuesday-Blitz-October-17-2023"]
[Site "Chess.com"]
[Date "2023.10.17"]
[Round "1"]
[White "Road2GM3000"]
[Black "LeRoidesChampions"]
[Result "1/2-1/2"]
[WhiteElo "2424"]
[BlackElo "2695"]
[TimeControl "180+1"]
[EndTime "8:08:51 PDT"]
[Termination "Game drawn by repetition"]

1. d4 {[%clk 0:03:00.9]} 1... Nf6 {[%clk 0:02:52.8]} 2. c4 {[%clk 0:03:01.1]}
2... e6 {[%clk 0:02:52.5]} 3. Nc3 {[%clk 0:03:01.6]} 3... Bb4 {[%clk 0:02:52.1]}
4. Nf3 {[%clk 0:03:02.1]} 4... O-O {[%clk 0:02:49.1]} 5. Bg5 {[%clk 0:03:02.4]}
5... h6 {[%clk 0:02:47.1]} 6. Bh4 {[%clk 0:03:02.3]} 6... d5 {[%clk 0:02:39.6]}
7. e3 {[%clk 0:03:01.8]} 7... Nbd7 {[%clk 0:02:29.3]} 8. cxd5 {[%clk 0:03:01.6]}
8... exd5 {[%clk 0:02:28.7]} 9. Bd3 {[%clk 0:03:02.3]} 9... c6 {[%clk
0:02:26.7]} 10. O-O {[%clk 0:03:02.4]} 10... Re8 {[%clk 0:02:22.6]} 11. Rc1
{[%clk 0:02:58.1]} 11... Bd6 {[%clk 0:02:22]} 12. Bb1 {[%clk 0:02:57.6]} 12...
a6 {[%clk 0:02:19.2]} 13. Qd3 {[%clk 0:02:57.3]} 13... Nf8 {[%clk 0:02:14.4]}
14. a3 {[%clk 0:02:56.9]} 14... Bg4 {[%clk 0:02:12.2]} 15. Kh1 {[%clk
0:02:51.1]} 15... Ng6 {[%clk 0:02:07.4]} 16. Bg3 {[%clk 0:02:45.4]} 16... Bxg3
{[%clk 0:02:06.5]} 17. hxg3 {[%clk 0:02:44.2]} 17... Ne4 {[%clk 0:02:06.9]} 18.
Qc2 {[%clk 0:01:43.4]} 18... Bf5 {[%clk 0:02:03]} 19. Qe2 {[%clk 0:01:38.3]}
19... Nxc3 {[%clk 0:01:59.3]} 20. bxc3 {[%clk 0:01:36.7]} 20... Bxb1 {[%clk
0:01:58.6]} 21. Rxb1 {[%clk 0:01:37.6]} 21... b5 {[%clk 0:01:59]} 22. Rb2 {[%clk
0:01:26.5]} 22... Qa5 {[%clk 0:01:55.9]} 23. Rb3 {[%clk 0:01:26.8]} 23... Qa4
{[%clk 0:01:50.1]} 24. Rfb1 {[%clk 0:01:25.9]} 24... Re6 {[%clk 0:01:37.7]} 25.
Qb2 {[%clk 0:01:24]} 25... Qc4 {[%clk 0:01:34.2]} 26. Qc2 {[%clk 0:01:20.8]}
26... a5 {[%clk 0:01:27.6]} 27. Qd1 {[%clk 0:01:07.4]} 27... a4 {[%clk
0:01:22.4]} 28. R3b2 {[%clk 0:00:24.7]} 28... Qxc3 {[%clk 0:01:21.9]} 29. Ra2
{[%clk 0:00:23.9]} 29... Re7 {[%clk 0:00:53.4]} 30. Ne1 {[%clk 0:00:18.8]} 30...
c5 {[%clk 0:00:39.8]} 31. dxc5 {[%clk 0:00:17.5]} 31... Qxc5 {[%clk 0:00:39.4]}
32. Nd3 {[%clk 0:00:18.3]} 32... Qc4 {[%clk 0:00:37.3]} 33. Rc2 {[%clk
0:00:17.5]} 33... Qe4 {[%clk 0:00:37.3]} 34. Rxb5 {[%clk 0:00:14.7]} 34... d4
{[%clk 0:00:30.7]} 35. Rb4 {[%clk 0:00:14.7]} 35... Rd8 {[%clk 0:00:29]} 36.
Rcc4 {[%clk 0:00:14.8]} 36... Qe6 {[%clk 0:00:17.1]} 37. Rxd4 {[%clk 0:00:14.8]}
37... Rc8 {[%clk 0:00:17.6]} 38. Rxa4 {[%clk 0:00:13.4]} 38... Rec7 {[%clk
0:00:16.4]} 39. Kh2 {[%clk 0:00:10.8]} 39... Ne5 {[%clk 0:00:15.8]} 40. Nxe5
{[%clk 0:00:10.5]} 40... Qxe5 {[%clk 0:00:15.1]} 41. Rd8+ {[%clk 0:00:10.5]}
41... Rxd8 {[%clk 0:00:12.8]} 42. Qxd8+ {[%clk 0:00:11.4]} 42... Kh7 {[%clk
0:00:13.6]} 43. Ra8 {[%clk 0:00:06.2]} 43... Qh5+ {[%clk 0:00:13.4]} 44. Qh4
{[%clk 0:00:07]} 44... Qd5 {[%clk 0:00:12.4]} 45. Ra4 {[%clk 0:00:04.6]} 45...
f5 {[%clk 0:00:08.7]} 46. Qf4 {[%clk 0:00:04.4]} 46... Rc1 {[%clk 0:00:07.3]}
47. Rd4 {[%clk 0:00:03.6]} 47... Qf7 {[%clk 0:00:05.9]} 48. Rb4 {[%clk
0:00:02.8]} 48... Qh5+ {[%clk 0:00:05.5]} 49. Qh4 {[%clk 0:00:03.4]} 49... Qd1
{[%clk 0:00:06]} 50. g4 {[%clk 0:00:02.9]} 50... Qg1+ {[%clk 0:00:03.4]} 51. Kg3
{[%clk 0:00:03.7]} 51... Rc2 {[%clk 0:00:03.4]} 52. Kf3 {[%clk 0:00:02.9]} 52...
Qd1+ {[%clk 0:00:02.7]} 53. Kg3 {[%clk 0:00:03.2]} 53... Qd6+ {[%clk 0:00:03.3]}
54. Kh3 {[%clk 0:00:02.4]} 54... fxg4+ {[%clk 0:00:02]} 55. Rxg4 {[%clk
0:00:03.1]} 55... Rc5 {[%clk 0:00:02.1]} 56. Qg3 {[%clk 0:00:03.6]} 56... Rh5+
{[%clk 0:00:02.1]} 57. Rh4 {[%clk 0:00:04.2]} 57... Qe6+ {[%clk 0:00:02.8]} 58.
Qg4 {[%clk 0:00:04.1]} 58... Rxh4+ {[%clk 0:00:02.5]} 59. Kxh4 {[%clk
0:00:04.4]} 59... Qe7+ {[%clk 0:00:03.4]} 60. Kg3 {[%clk 0:00:04.8]} 60... Qxa3
{[%clk 0:00:04.3]} 61. Qe4+ {[%clk 0:00:05]} 61... Kh8 {[%clk 0:00:04.6]} 62.
Qe8+ {[%clk 0:00:05]} 62... Kh7 {[%clk 0:00:05.1]} 63. Qe4+ {[%clk 0:00:05.6]}
63... Kh8 {[%clk 0:00:05.1]} 64. Qf4 {[%clk 0:00:06.5]} 64... Qe7 {[%clk
0:00:04.5]} 65. f3 {[%clk 0:00:07]} 65... Kh7 {[%clk 0:00:04.7]} 66. e4 {[%clk
0:00:07.4]} 66... Qa3 {[%clk 0:00:04.1]} 67. Qf5+ {[%clk 0:00:07.8]} 67... Kh8
{[%clk 0:00:03.9]} 68. Kg4 {[%clk 0:00:08.3]} 68... Qe3 {[%clk 0:00:04.3]} 69.
e5 {[%clk 0:00:08.6]} 69... Qe2 {[%clk 0:00:04]} 70. Kg3 {[%clk 0:00:08.2]}
70... Qe1+ {[%clk 0:00:04.2]} 71. Kh3 {[%clk 0:00:08.8]} 71... Qh1+ {[%clk
0:00:04.2]} 72. Kg3 {[%clk 0:00:08.8]} 72... Qe1+ {[%clk 0:00:04.9]} 73. Kh3
{[%clk 0:00:09.4]} 73... Qh1+ {[%clk 0:00:04.8]} 74. Kg3 {[%clk 0:00:09.4]}
74... Qe1+ {[%clk 0:00:05.4]} 1/2-1/2

[Event "Early-Titled-Tuesday-Blitz-October-17-2023"]
[Site "Chess.com"]
[Date "2023.10.17"]
[Round "1"]
[White "Andrei_Skvortsov"]
[Black "viktorgen2021"]
[Result "1/2-1/2"]
[WhiteElo "2654"]
[BlackElo "2392"]
[TimeControl "180+1"]
[EndTime "8:08:56 PDT"]
[Termination "Game drawn - insufficient material"]

1. e4 {[%clk 0:02:55]} 1... g6 {[%clk 0:02:56.7]} 2. g3 {[%clk 0:02:52]} 2...
Bg7 {[%clk 0:02:56.7]} 3. Bg2 {[%clk 0:02:52.3]} 3... d6 {[%clk 0:02:54.1]} 4.
d4 {[%clk 0:02:51.5]} 4... Nf6 {[%clk 0:02:53.5]} 5. Ne2 {[%clk 0:02:51]} 5...
O-O {[%clk 0:02:54.1]} 6. h3 {[%clk 0:02:51.4]} 6... Nc6 {[%clk 0:02:54]} 7. d5
{[%clk 0:02:50]} 7... Nb8 {[%clk 0:02:51.8]} 8. O-O {[%clk 0:02:49.7]} 8... e5
{[%clk 0:02:52.3]} 9. dxe6 {[%clk 0:02:47.8]} 9... fxe6 {[%clk 0:02:48.9]} 10.
Nbc3 {[%clk 0:02:44.1]} 10... e5 {[%clk 0:02:47.7]} 11. Be3 {[%clk 0:02:36]}
11... Nc6 {[%clk 0:02:47]} 12. Qd2 {[%clk 0:02:26.9]} 12... Be6 {[%clk
0:02:42.9]} 13. b3 {[%clk 0:02:25.1]} 13... Qd7 {[%clk 0:02:43.2]} 14. Kh2
{[%clk 0:02:17.5]} 14... Rf7 {[%clk 0:02:34.3]} 15. Rad1 {[%clk 0:02:00.7]}
15... Raf8 {[%clk 0:02:33.8]} 16. f3 {[%clk 0:01:59.2]} 16... Nh5 {[%clk
0:02:27.9]} 17. g4 {[%clk 0:01:58.8]} 17... Nf4 {[%clk 0:02:27.3]} 18. Nxf4
{[%clk 0:01:58.9]} 18... exf4 {[%clk 0:02:27.5]} 19. Bf2 {[%clk 0:01:59.1]}
19... h5 {[%clk 0:02:25.2]} 20. Rh1 {[%clk 0:01:57.9]} 20... Ne5 {[%clk
0:02:14.8]} 21. gxh5 {[%clk 0:01:51.3]} 21... Bxh3 {[%clk 0:02:09.2]} 22. Bxh3
{[%clk 0:01:38.9]} 22... Nxf3+ {[%clk 0:02:03.6]} 23. Kg2 {[%clk 0:01:37.7]}
23... Qxh3+ {[%clk 0:01:53.7]} 24. Rxh3 {[%clk 0:01:35.7]} 24... Nxd2 {[%clk
0:01:54]} 25. hxg6 {[%clk 0:01:28.6]} 25... f3+ {[%clk 0:01:45]} 26. Kh1 {[%clk
0:01:27.2]} 26... Rd7 {[%clk 0:01:16.4]} 27. Rh7 {[%clk 0:01:27]} 27... Rf6
{[%clk 0:01:06]} 28. Rxg7+ {[%clk 0:01:18.6]} 28... Rxg7 {[%clk 0:01:04.1]} 29.
Bd4 {[%clk 0:00:24.2]} 29... f2 {[%clk 0:00:37.7]} 30. Bxf6 {[%clk 0:00:22.1]}
30... Rxg6 {[%clk 0:00:37.8]} 31. Nd5 {[%clk 0:00:16.2]} 31... Kf7 {[%clk
0:00:31.9]} 32. Bd4 {[%clk 0:00:09.9]} 32... f1=Q+ {[%clk 0:00:23.7]} 33. Rxf1+
{[%clk 0:00:10.4]} 33... Nxf1 {[%clk 0:00:24.6]} 34. Nxc7 {[%clk 0:00:09.7]}
34... Ng3+ {[%clk 0:00:24.5]} 35. Kh2 {[%clk 0:00:09.5]} 35... Nxe4 {[%clk
0:00:23.8]} 36. Bxa7 {[%clk 0:00:09.6]} 36... Rh6+ {[%clk 0:00:21.2]} 37. Kg2
{[%clk 0:00:09.5]} 37... Rg6+ {[%clk 0:00:21.7]} 38. Kf3 {[%clk 0:00:10]} 38...
Nf6 {[%clk 0:00:18.3]} 39. Nb5 {[%clk 0:00:08.6]} 39... Ke6 {[%clk 0:00:17.1]}
40. Be3 {[%clk 0:00:09.1]} 40... Nd5 {[%clk 0:00:16.6]} 41. Bd2 {[%clk
0:00:09.7]} 41... Rf6+ {[%clk 0:00:16.1]} 42. Ke2 {[%clk 0:00:09.7]} 42... Rg6
{[%clk 0:00:15.7]} 43. Nd4+ {[%clk 0:00:09.3]} 43... Kd7 {[%clk 0:00:15.2]} 44.
c4 {[%clk 0:00:09.4]} 44... Ne7 {[%clk 0:00:14.1]} 45. Kd3 {[%clk 0:00:09.2]}
45... Rg3+ {[%clk 0:00:14.2]} 46. Kc2 {[%clk 0:00:09.8]} 46... Nc6 {[%clk
0:00:13.1]} 47. Nb5 {[%clk 0:00:09.7]} 47... Rg2 {[%clk 0:00:12.4]} 48. Kc3
{[%clk 0:00:09.1]} 48... Ne5 {[%clk 0:00:12.6]} 49. Bf4 {[%clk 0:00:08.8]} 49...
Rf2 {[%clk 0:00:11.7]} 50. Be3 {[%clk 0:00:07.8]} 50... Rf3 {[%clk 0:00:11.7]}
51. Kd2 {[%clk 0:00:07.3]} 51... Ng4 {[%clk 0:00:12.3]} 52. Bb6 {[%clk
0:00:06.1]} 52... Rh3 {[%clk 0:00:11]} 53. Kc2 {[%clk 0:00:06.4]} 53... Rh2+
{[%clk 0:00:11.3]} 54. Kb1 {[%clk 0:00:06.9]} 54... Nf2 {[%clk 0:00:10.9]} 55.
Bd4 {[%clk 0:00:06.5]} 55... Nd3 {[%clk 0:00:11.2]} 56. a4 {[%clk 0:00:07]}
56... Nb4 {[%clk 0:00:10.3]} 57. Bc3 {[%clk 0:00:06.8]} 57... Nc6 {[%clk
0:00:09.9]} 58. Bb2 {[%clk 0:00:05.1]} 58... Ne7 {[%clk 0:00:09.5]} 59. Ka2
{[%clk 0:00:05.5]} 59... d5 {[%clk 0:00:10]} 60. cxd5 {[%clk 0:00:05.6]} 60...
Nxd5 {[%clk 0:00:10.9]} 61. Ka3 {[%clk 0:00:06.1]} 61... Rh3 {[%clk 0:00:10.9]}
62. Bd4 {[%clk 0:00:06]} 62... Nf4 {[%clk 0:00:10.5]} 63. Be5 {[%clk 0:00:06]}
63... Ne2 {[%clk 0:00:10.5]} 64. Bd4 {[%clk 0:00:06.6]} 64... Nc1 {[%clk
0:00:10.2]} 65. Bc3 {[%clk 0:00:06]} 65... Kc6 {[%clk 0:00:09]} 66. Kb2 {[%clk
0:00:06]} 66... Nd3+ {[%clk 0:00:09]} 67. Kc2 {[%clk 0:00:06.6]} 67... Nc5
{[%clk 0:00:09.2]} 68. Nd4+ {[%clk 0:00:06.8]} 68... Kd5 {[%clk 0:00:09.2]} 69.
Nb5 {[%clk 0:00:07.5]} 69... Ne4 {[%clk 0:00:09.4]} 70. Bb4 {[%clk 0:00:06.6]}
70... Rh2+ {[%clk 0:00:09.9]} 71. Kd3 {[%clk 0:00:06.5]} 71... Rb2 {[%clk
0:00:09.9]} 72. Nc3+ {[%clk 0:00:05.7]} 72... Nxc3 {[%clk 0:00:09]} 73. Kxc3
{[%clk 0:00:06.6]} 73... Rb1 {[%clk 0:00:09.2]} 74. Kc2 {[%clk 0:00:06.9]} 74...
Rh1 {[%clk 0:00:09.3]} 75. Kb2 {[%clk 0:00:06.2]} 75... Rh3 {[%clk 0:00:10.2]}
76. Ka3 {[%clk 0:00:06.2]} 76... Kc6 {[%clk 0:00:10.6]} 77. Bf8 {[%clk
0:00:06.3]} 77... Kb6 {[%clk 0:00:09.7]} 78. Bg7 {[%clk 0:00:06.5]} 78... Ka6
{[%clk 0:00:10.2]} 79. Be5 {[%clk 0:00:06.6]} 79... b5 {[%clk 0:00:10.7]} 80.
axb5+ {[%clk 0:00:06.5]} 80... Kxb5 {[%clk 0:00:11.6]} 81. Bd4 {[%clk
0:00:06.8]} 81... Rd3 {[%clk 0:00:11]} 82. Bf6 {[%clk 0:00:07]} 82... Rxb3+
{[%clk 0:00:10.6]} 83. Kxb3 {[%clk 0:00:06.8]} 1/2-1/2

[Event "Early-Titled-Tuesday-Blitz-October-17-2023"]
[Site "Chess.com"]
[Date "2023.10.17"]
[Round "1"]
[White "SaqoChess_Twitch"]
[Black "Me_ch_an"]
[Result "1/2-1/2"]
[WhiteElo "2627"]
[BlackElo "2346"]
[TimeControl "180+1"]
[EndTime "8:11:36 PDT"]
[Termination "Game drawn by 50-move rule"]

1. d4 {[%clk 0:02:44]} 1... d5 {[%clk 0:02:59.8]} 2. c4 {[%clk 0:02:43.9]} 2...
dxc4 {[%clk 0:03:00]} 3. e4 {[%clk 0:02:43.6]} 3... e5 {[%clk 0:03:00]} 4. Nf3
{[%clk 0:02:43.2]} 4... exd4 {[%clk 0:02:59.3]} 5. Bxc4 {[%clk 0:02:43]} 5...
Bb4+ {[%clk 0:02:58.1]} 6. Nbd2 {[%clk 0:02:42.3]} 6... Qf6 {[%clk 0:02:56.2]}
7. O-O {[%clk 0:02:40.1]} 7... Ne7 {[%clk 0:02:55.4]} 8. e5 {[%clk 0:02:38.6]}
8... Qg6 {[%clk 0:02:55.2]} 9. Nxd4 {[%clk 0:02:30.7]} 9... O-O {[%clk 0:02:46]}
10. e6 {[%clk 0:02:15.7]} 10... fxe6 {[%clk 0:02:38.3]} 11. Qb3 {[%clk
0:02:14.3]} 11... Bxd2 {[%clk 0:02:26.2]} 12. Nxe6 {[%clk 0:01:58.7]} 12... Bxe6
{[%clk 0:02:25.3]} 13. Bxe6+ {[%clk 0:01:58.6]} 13... Kh8 {[%clk 0:02:26]} 14.
Bxd2 {[%clk 0:01:58.8]} 14... Nbc6 {[%clk 0:02:24.4]} 15. Bh3 {[%clk 0:01:50.4]}
15... Nd4 {[%clk 0:02:15.2]} 16. Qe3 {[%clk 0:01:28]} 16... Nf3+ {[%clk
0:01:47.1]} 17. Kh1 {[%clk 0:01:28]} 17... Nd5 {[%clk 0:01:47.2]} 18. Qe2 {[%clk
0:01:17.2]} 18... Rae8 {[%clk 0:01:32.4]} 19. Qd1 {[%clk 0:01:17.1]} 19... Nxd2
{[%clk 0:01:03.5]} 20. Qxd2 {[%clk 0:01:18]} 20... Nf4 {[%clk 0:01:02.7]} 21.
Qc3 {[%clk 0:01:10.5]} 21... c6 {[%clk 0:00:53.3]} 22. Rae1 {[%clk 0:01:00.9]}
22... h6 {[%clk 0:00:43.7]} 23. Qg3 {[%clk 0:00:45]} 23... Rxe1 {[%clk
0:00:29.6]} 24. Rxe1 {[%clk 0:00:41.8]} 24... Qxg3 {[%clk 0:00:28.2]} 25. fxg3
{[%clk 0:00:32.4]} 25... Nd3 {[%clk 0:00:27.6]} 26. Rb1 {[%clk 0:00:26.8]} 26...
Nxb2 {[%clk 0:00:26.8]} 27. Be6 {[%clk 0:00:18.9]} 27... Rf2 {[%clk 0:00:26.5]}
28. h4 {[%clk 0:00:18.6]} 28... b6 {[%clk 0:00:25.8]} 29. h5 {[%clk 0:00:18.6]}
29... Re2 {[%clk 0:00:24.1]} 30. Bb3 {[%clk 0:00:17.3]} 30... c5 {[%clk
0:00:20.2]} 31. Bd5 {[%clk 0:00:15]} 31... Rd2 {[%clk 0:00:19.8]} 32. Be6 {[%clk
0:00:15.1]} 32... c4 {[%clk 0:00:18.3]} 33. Rf1 {[%clk 0:00:14.7]} 33... Rd8
{[%clk 0:00:18]} 34. Rf7 {[%clk 0:00:12.3]} 34... c3 {[%clk 0:00:17.4]} 35. Rc7
{[%clk 0:00:12.9]} 35... Na4 {[%clk 0:00:15.4]} 36. Rc4 {[%clk 0:00:10.7]} 36...
b5 {[%clk 0:00:14.7]} 37. Rc7 {[%clk 0:00:10.9]} 37... b4 {[%clk 0:00:14]} 38.
Bb3 {[%clk 0:00:11]} 38... Nb6 {[%clk 0:00:12.6]} 39. g4 {[%clk 0:00:11.4]}
39... a5 {[%clk 0:00:10.2]} 40. Rc5 {[%clk 0:00:10.2]} 40... a4 {[%clk
0:00:10.3]} 41. Bc2 {[%clk 0:00:10.8]} 41... Rc8 {[%clk 0:00:08.9]} 42. Rb5
{[%clk 0:00:10]} 42... b3 {[%clk 0:00:04.5]} 43. axb3 {[%clk 0:00:10.7]} 43...
axb3 {[%clk 0:00:04.9]} 44. Rxb3 {[%clk 0:00:10.6]} 44... Nd5 {[%clk 0:00:04.1]}
45. Bf5 {[%clk 0:00:07.8]} 45... Rd8 {[%clk 0:00:02.6]} 46. Ra3 {[%clk
0:00:07.1]} 46... Ne3 {[%clk 0:00:02.1]} 47. Rxc3 {[%clk 0:00:07.1]} 47... Nxf5
{[%clk 0:00:02.2]} 48. gxf5 {[%clk 0:00:07.5]} 48... Rd5 {[%clk 0:00:02.5]} 49.
Rf3 {[%clk 0:00:07.4]} 49... Kg8 {[%clk 0:00:03.1]} 50. Kh2 {[%clk 0:00:08.1]}
50... Kf7 {[%clk 0:00:03.7]} 51. Kh3 {[%clk 0:00:08.4]} 51... Kf6 {[%clk
0:00:04.3]} 52. Kg4 {[%clk 0:00:07]} 52... Rd4+ {[%clk 0:00:04.2]} 53. Rf4
{[%clk 0:00:07.6]} 53... Rd2 {[%clk 0:00:04.3]} 54. g3 {[%clk 0:00:08]} 54...
Rd5 {[%clk 0:00:03.4]} 55. Rf3 {[%clk 0:00:07]} 55... Rd4+ {[%clk 0:00:03.7]}
56. Rf4 {[%clk 0:00:07.5]} 56... Rd5 {[%clk 0:00:04.1]} 57. Ra4 {[%clk
0:00:07.7]} 57... Rd6 {[%clk 0:00:03.4]} 58. Kf4 {[%clk 0:00:07.3]} 58... Rb6
{[%clk 0:00:03.6]} 59. Re4 {[%clk 0:00:07.8]} 59... Ra6 {[%clk 0:00:03.6]} 60.
g4 {[%clk 0:00:08]} 60... Rb6 {[%clk 0:00:04]} 61. Rd4 {[%clk 0:00:06.4]} 61...
Rc6 {[%clk 0:00:04.3]} 62. Rb4 {[%clk 0:00:06.4]} 62... Ra6 {[%clk 0:00:04.2]}
63. Re4 {[%clk 0:00:06.4]} 63... Rb6 {[%clk 0:00:04.5]} 64. Re8 {[%clk
0:00:06.7]} 64... Rb4+ {[%clk 0:00:04.4]} 65. Kg3 {[%clk 0:00:07.4]} 65... Rb3+
{[%clk 0:00:04.4]} 66. Kh4 {[%clk 0:00:08]} 66... Rb4 {[%clk 0:00:04.8]} 67.
Re6+ {[%clk 0:00:08.2]} 67... Kf7 {[%clk 0:00:05]} 68. Rg6 {[%clk 0:00:09.1]}
68... Ra4 {[%clk 0:00:04.9]} 69. f6 {[%clk 0:00:09.1]} 69... gxf6 {[%clk
0:00:04.3]} 70. Kg3 {[%clk 0:00:09.5]} 70... Ra3+ {[%clk 0:00:03.8]} 71. Kf4
{[%clk 0:00:09.6]} 71... Ra4+ {[%clk 0:00:04.2]} 72. Kf5 {[%clk 0:00:10.1]}
72... Ra5+ {[%clk 0:00:04.4]} 73. Ke4 {[%clk 0:00:10.7]} 73... Ra4+ {[%clk
0:00:05]} 74. Kf3 {[%clk 0:00:11.4]} 74... Ra3+ {[%clk 0:00:05.1]} 75. Kg2
{[%clk 0:00:12.2]} 75... Ra2+ {[%clk 0:00:05.4]} 76. Kg3 {[%clk 0:00:12.8]}
76... Ra3+ {[%clk 0:00:06]} 77. Kh4 {[%clk 0:00:13.5]} 77... Ra4 {[%clk
0:00:06.3]} 78. Rxh6 {[%clk 0:00:13.8]} 78... f5 {[%clk 0:00:06.7]} 79. Kg5
{[%clk 0:00:10.3]} 79... Rxg4+ {[%clk 0:00:05.8]} 80. Kxf5 {[%clk 0:00:10.5]}
80... Rg1 {[%clk 0:00:06.2]} 81. Rh7+ {[%clk 0:00:10.6]} 81... Kg8 {[%clk
0:00:06.5]} 82. Ra7 {[%clk 0:00:10.6]} 82... Kh8 {[%clk 0:00:05.6]} 83. Rb7
{[%clk 0:00:10.1]} 83... Kg8 {[%clk 0:00:05.9]} 84. Rc7 {[%clk 0:00:10.3]} 84...
Kh8 {[%clk 0:00:06.3]} 85. Rd7 {[%clk 0:00:10.7]} 85... Kg8 {[%clk 0:00:06.7]}
86. Rd6 {[%clk 0:00:10.8]} 86... Kh8 {[%clk 0:00:07]} 87. Rc6 {[%clk 0:00:11.2]}
87... Kg8 {[%clk 0:00:07.3]} 88. Rb6 {[%clk 0:00:11]} 88... Kh8 {[%clk
0:00:07.7]} 89. Kf6 {[%clk 0:00:10.5]} 89... Kh7 {[%clk 0:00:07.6]} 90. Rb8
{[%clk 0:00:10]} 90... Rf1+ {[%clk 0:00:04.5]} 91. Kg5 {[%clk 0:00:09.8]} 91...
Rg1+ {[%clk 0:00:05]} 92. Kf4 {[%clk 0:00:10.4]} 92... Kh6 {[%clk 0:00:04.3]}
93. Kf5 {[%clk 0:00:08.1]} 93... Rf1+ {[%clk 0:00:03.9]} 94. Kg4 {[%clk
0:00:08.8]} 94... Rg1+ {[%clk 0:00:04.2]} 95. Kf5 {[%clk 0:00:09.4]} 95... Rg5+
{[%clk 0:00:04.3]} 96. Kf6 {[%clk 0:00:09.6]} 96... Kxh5 {[%clk 0:00:02]} 97.
Rh8+ {[%clk 0:00:10.2]} 97... Kg4 {[%clk 0:00:02.5]} 98. Rh1 {[%clk 0:00:11.1]}
98... Rf5+ {[%clk 0:00:02.3]} 99. Kg6 {[%clk 0:00:11.8]} 99... Ra5 {[%clk
0:00:03]} 100. Rg1+ {[%clk 0:00:11.7]} 100... Kf3 {[%clk 0:00:03.5]} 101. Rb1
{[%clk 0:00:12.6]} 101... Ke2 {[%clk 0:00:03.7]} 102. Rb3 {[%clk 0:00:13]}
102... Kd2 {[%clk 0:00:03.9]} 103. Kf6 {[%clk 0:00:13.3]} 103... Kc2 {[%clk
0:00:04.3]} 104. Rh3 {[%clk 0:00:14]} 104... Ra6+ {[%clk 0:00:04.4]} 105. Ke5
{[%clk 0:00:14.5]} 105... Ra5+ {[%clk 0:00:05.1]} 106. Kd4 {[%clk 0:00:15.3]}
106... Ra8 {[%clk 0:00:04.2]} 107. Rh2+ {[%clk 0:00:15]} 107... Kb3 {[%clk
0:00:04.5]} 108. Rh3+ {[%clk 0:00:15.7]} 108... Kb4 {[%clk 0:00:04.9]} 109. Rh4
{[%clk 0:00:15.2]} 109... Rd8+ {[%clk 0:00:05.2]} 110. Ke5+ {[%clk 0:00:15.6]}
110... Kc5 {[%clk 0:00:05.5]} 111. Ke6 {[%clk 0:00:15.7]} 111... Re8+ {[%clk
0:00:05.8]} 112. Kd7 {[%clk 0:00:15.9]} 112... Re1 {[%clk 0:00:05.7]} 113. Rh5+
{[%clk 0:00:16.6]} 113... Kd4 {[%clk 0:00:05.9]} 114. Kd6 {[%clk 0:00:17.2]}
114... Kc4 {[%clk 0:00:04.5]} 115. Rh4+ {[%clk 0:00:17.3]} 115... Kd3 {[%clk
0:00:04.6]} 116. Kd5 {[%clk 0:00:17.4]} 116... Ke3 {[%clk 0:00:04.6]} 117. Re4+
{[%clk 0:00:17]} 117... Kf2 {[%clk 0:00:05.1]} 118. Rf4+ {[%clk 0:00:17]} 118...
Ke3 {[%clk 0:00:05.3]} 119. Ke5 {[%clk 0:00:16.6]} 119... Kd3+ {[%clk 0:00:05]}
120. Kd5 {[%clk 0:00:16.9]} 120... Ke3 {[%clk 0:00:05.3]} 121. Ra4 {[%clk
0:00:17.8]} 121... Rd1+ {[%clk 0:00:04.8]} 122. Ke5 {[%clk 0:00:18.5]} 122...
Rb1 {[%clk 0:00:05]} 123. Ra3+ {[%clk 0:00:18.9]} 123... Kd2 {[%clk 0:00:05.4]}
124. Ke4 {[%clk 0:00:19.1]} 124... Rb4+ {[%clk 0:00:05.3]} 125. Kf3 {[%clk
0:00:19.5]} 125... Rb8 {[%clk 0:00:04.8]} 126. Ra2+ {[%clk 0:00:19.2]} 126...
Kd3 {[%clk 0:00:05.3]} 127. Ra1 {[%clk 0:00:19.6]} 127... Rf8+ {[%clk
0:00:04.7]} 128. Kg4 {[%clk 0:00:20.2]} 128... Rg8+ {[%clk 0:00:03.8]} 129. Kf5
{[%clk 0:00:20.8]} 129... Rf8+ {[%clk 0:00:04.3]} 130. Ke6 {[%clk 0:00:21.5]}
130... Re8+ {[%clk 0:00:04.7]} 131. Kd7 {[%clk 0:00:22.1]} 131... Re3 {[%clk
0:00:04.9]} 132. Ra3+ {[%clk 0:00:22.5]} 132... Ke4 {[%clk 0:00:05.3]} 133. Ra6
{[%clk 0:00:23.4]} 133... Kf3 {[%clk 0:00:05.6]} 134. Rh6 {[%clk 0:00:24.1]}
134... Ke2 {[%clk 0:00:05.8]} 135. Rh1 {[%clk 0:00:24.6]} 135... Kd3 {[%clk
0:00:06]} 136. Kd6 {[%clk 0:00:25.3]} 136... Ke4 {[%clk 0:00:05.9]} 137. Kc5
{[%clk 0:00:25.8]} 137... Kf3 {[%clk 0:00:06]} 138. Kd4 {[%clk 0:00:25.2]}
138... Re4+ {[%clk 0:00:06.3]} 139. Kd3 {[%clk 0:00:25.2]} 139... Re3+ {[%clk
0:00:06.6]} 140. Kd2 {[%clk 0:00:26]} 140... Re2+ {[%clk 0:00:06.9]} 141. Kd1
{[%clk 0:00:26.7]} 141... Re8 {[%clk 0:00:06.9]} 142. Rf1+ {[%clk 0:00:26.7]}
142... Kg2 {[%clk 0:00:07.3]} 143. Rf7 {[%clk 0:00:26.8]} 143... Rd8+ {[%clk
0:00:07.5]} 144. Ke2 {[%clk 0:00:27]} 144... Re8+ {[%clk 0:00:08]} 145. Kd3
{[%clk 0:00:26.9]} 145... Rd8+ {[%clk 0:00:08.5]} 146. Ke3 {[%clk 0:00:27.6]}
146... Re8+ {[%clk 0:00:09]} 1/2-1/2

[Event "Early-Titled-Tuesday-Blitz-October-17-2023"]
[Site "Chess.com"]
[Date "2023.10.17"]
[Round "2"]
[White "ploxoi"]
[Black "Kirill_Klukin"]
[Result "0-1"]
[WhiteElo "2469"]
[BlackElo "2676"]
[TimeControl "180+1"]
[EndTime "8:13:06 PDT"]
[Termination "Kirill_Klukin won by resignation"]

1. d4 {[%clk 0:03:00.9]} 1... Nf6 {[%clk 0:02:59.1]} 2. c4 {[%clk 0:02:59.9]}
2... Nc6 {[%clk 0:02:59.3]} 3. Nf3 {[%clk 0:02:55.1]} 3... e6 {[%clk 0:02:59.4]}
4. Nc3 {[%clk 0:02:54.7]} 4... Bb4 {[%clk 0:02:58.9]} 5. Qd3 {[%clk 0:02:51.8]}
5... O-O {[%clk 0:02:54.9]} 6. g3 {[%clk 0:02:49.6]} 6... d6 {[%clk 0:02:55]} 7.
Bg2 {[%clk 0:02:49.6]} 7... e5 {[%clk 0:02:55.5]} 8. d5 {[%clk 0:02:49.5]} 8...
e4 {[%clk 0:02:54.6]} 9. Qc2 {[%clk 0:02:25.1]} 9... exf3 {[%clk 0:02:54.1]} 10.
Bxf3 {[%clk 0:02:25.8]} 10... Nd4 {[%clk 0:02:53.6]} 11. Bg2 {[%clk 0:02:26.7]}
11... Nxc2+ {[%clk 0:02:53.7]} 0-1

[Event "Early-Titled-Tuesday-Blitz-October-17-2023"]
[Site "Chess.com"]
[Date "2023.10.17"]
[Round "2"]
[White "NM_Antelacus"]
[Black "Casper"]
[Result "1-0"]
[WhiteElo "2098"]
[BlackElo "2408"]
[TimeControl "180+1"]
[EndTime "8:14:35 PDT"]
[Termination "NM_Antelacus won by resignation"]

1. e4 {[%clk 0:03:00.9]} 1... c5 {[%clk 0:02:56.1]} 2. Nf3 {[%clk 0:03:00.6]}
2... d6 {[%clk 0:02:56.3]} 3. d4 {[%clk 0:02:59.9]} 3... Nf6 {[%clk 0:02:57.1]}
4. Nc3 {[%clk 0:02:56.4]} 4... cxd4 {[%clk 0:02:57.6]} 5. Nxd4 {[%clk
0:02:56.3]} 5... Nc6 {[%clk 0:02:58.5]} 6. Bg5 {[%clk 0:02:42.7]} 6... Bd7
{[%clk 0:02:57.7]} 7. Qd2 {[%clk 0:02:41.6]} 7... Rc8 {[%clk 0:02:56.3]} 8.
O-O-O {[%clk 0:02:38.8]} 8... Nxd4 {[%clk 0:02:53.6]} 9. Qxd4 {[%clk 0:02:38]}
9... Qa5 {[%clk 0:02:54.5]} 10. f4 {[%clk 0:02:33.9]} 10... Rxc3 {[%clk
0:02:53]} 11. Qxc3 {[%clk 0:02:32.2]} 11... Qxc3 {[%clk 0:02:51.4]} 12. bxc3
{[%clk 0:02:31.7]} 12... Nxe4 {[%clk 0:02:52.3]} 13. Bh4 {[%clk 0:01:56.1]}
13... g6 {[%clk 0:02:47.1]} 14. Bc4 {[%clk 0:01:41.8]} 14... Nxc3 {[%clk
0:02:37.3]} 15. Rde1 {[%clk 0:01:37.1]} 15... e6 {[%clk 0:02:30.2]} 16. Bf6
{[%clk 0:01:33.5]} 1-0